[Event "Titled Tuesday Blitz June 20 Late 2023"]
[White "Czerw, Dawid"]
[Black "Elsa167"]
[WhiteFideId "1145746"]
[WhiteElo "2144"]
[BlackElo "2825"]
[Result "0-1"]
[Round "1"]
[TimeControl "180+2"]
[Date "2023.06.20"]
[WhiteClock "0:00:01"]
[BlackClock "0:00:11"]
[Board "52"]

1. e4 {[%clk 0:03:00]}  c5 {[%clk 0:02:58]} 2. Nf3 {[%clk 0:03:00]}  e6 {[%clk 0:02:58]} 3. d4 {[%clk 0:03:00]}  cxd4 {[%clk 0:02:59]} 4. Nxd4 {[%clk 0:03:01]}  Nf6 {[%clk 0:02:59]} 5. Nc3 {[%clk 0:03:00]}  Nc6 {[%clk 0:02:59]} 6. Nxc6 {[%clk 0:03:00]}  bxc6 {[%clk 0:03:00]} 7. e5 {[%clk 0:03:01]}  Nd5 {[%clk 0:03:00]} 8. Ne4 {[%clk 0:03:01]}  Qc7 {[%clk 0:03:01]} 9. f4 {[%clk 0:03:01]}  Rb8 {[%clk 0:03:01]} 10. a3 {[%clk 0:03:00]}  Qb6 {[%clk 0:02:58]} 11. c4 {[%clk 0:02:55]}  Ne3 {[%clk 0:02:57]} 12. Qd3 {[%clk 0:02:53]}  Nxf1 {[%clk 0:02:57]} 13. Rxf1 {[%clk 0:02:52]}  c5 {[%clk 0:02:56]} 14. Kf2 {[%clk 0:02:43]}  Be7 {[%clk 0:02:14]} 15. Kg1 {[%clk 0:02:43]}  O-O {[%clk 0:02:09]} 16. Rf2 {[%clk 0:02:42]}  Qb3 {[%clk 0:01:52]} 17. Rf3 {[%clk 0:02:28]}  Qxd3 {[%clk 0:01:51]} 18. Rxd3 {[%clk 0:02:29]}  f6 {[%clk 0:01:41]} 19. b3 {[%clk 0:02:18]}  fxe5 {[%clk 0:01:32]} 20. fxe5 {[%clk 0:02:19]}  Bb7 {[%clk 0:01:32]} 21. Ng3 {[%clk 0:02:03]}  Bc6 {[%clk 0:01:28]} 22. Be3 {[%clk 0:01:58]}  Rb7 {[%clk 0:01:21]} 23. Ne2 {[%clk 0:01:28]}  Rfb8 {[%clk 0:01:21]} 24. Nc1 {[%clk 0:01:27]}  Be4 {[%clk 0:01:18]} 25. Rd2 {[%clk 0:01:22]}  Rf8 {[%clk 0:01:11]} 26. Rf2 {[%clk 0:01:19]}  Rf5 {[%clk 0:01:03]} 27. Rxf5 {[%clk 0:01:14]}  exf5 {[%clk 0:01:04]} 28. Ra2 {[%clk 0:01:01]}  Kf7 {[%clk 0:01:04]} 29. Rb2 {[%clk 0:00:52]}  Ke6 {[%clk 0:01:03]} 30. Bd2 {[%clk 0:00:49]}  g5 {[%clk 0:00:55]} 31. Bc3 {[%clk 0:00:47]}  Bf8 {[%clk 0:00:53]} 32. b4 {[%clk 0:00:45]}  Bg7 {[%clk 0:00:52]} 33. Nb3 {[%clk 0:00:42]}  d6 {[%clk 0:00:41]} 34. bxc5 {[%clk 0:00:26]}  Bxe5 {[%clk 0:00:24]} 35. Bxe5 {[%clk 0:00:23]}  dxe5 {[%clk 0:00:24]} 36. c6 {[%clk 0:00:22]}  Rc7 {[%clk 0:00:22]} 37. Nc5+ {[%clk 0:00:19]}  Kd6 {[%clk 0:00:23]} 38. Nxe4+ {[%clk 0:00:19]}  fxe4 {[%clk 0:00:24]} 39. Kf2 {[%clk 0:00:16]}  Rxc6 {[%clk 0:00:23]} 40. Rb7 {[%clk 0:00:16]}  a6 {[%clk 0:00:17]} 41. Ke3 {[%clk 0:00:15]}  Rxc4 {[%clk 0:00:17]} 42. Rxh7 {[%clk 0:00:15]}  Ra4 {[%clk 0:00:15]} 43. Rg7 {[%clk 0:00:10]}  Kd5 {[%clk 0:00:13]} 44. Rd7+ {[%clk 0:00:10]}  Ke6 {[%clk 0:00:14]} 45. Rg7 {[%clk 0:00:11]}  Kf6 {[%clk 0:00:14]} 46. Rg8 {[%clk 0:00:09]}  Rxa3+ {[%clk 0:00:14]} 47. Kxe4 {[%clk 0:00:09]}  Ra4+ {[%clk 0:00:15]} 48. Ke3 {[%clk 0:00:09]}  a5 {[%clk 0:00:15]} 49. g3 {[%clk 0:00:10]}  g4 {[%clk 0:00:15]} 50. Rh8 {[%clk 0:00:09]}  Ke6 {[%clk 0:00:14]} 51. h3 {[%clk 0:00:09]}  gxh3 {[%clk 0:00:14]} 52. Rxh3 {[%clk 0:00:08]}  Rb4 {[%clk 0:00:14]} 53. Rh6+ {[%clk 0:00:08]}  Kd5 {[%clk 0:00:14]} 54. Ra6 {[%clk 0:00:09]}  a4 {[%clk 0:00:14]} 55. Ra5+ {[%clk 0:00:08]}  Ke6 {[%clk 0:00:14]} 56. Kf3 {[%clk 0:00:08]}  Kf5 {[%clk 0:00:13]} 57. g4+ {[%clk 0:00:08]}  Rxg4 {[%clk 0:00:14]} 58. Ra8 {[%clk 0:00:07]}  Rd4 {[%clk 0:00:14]} 59. Ke3 {[%clk 0:00:07]}  Ke6 {[%clk 0:00:14]} 60. Re8+ {[%clk 0:00:07]}  Kd5 {[%clk 0:00:14]} 61. Rd8+ {[%clk 0:00:07]}  Kc4 {[%clk 0:00:15]} 62. Rb8 {[%clk 0:00:07]}  Kc3 {[%clk 0:00:15]} 63. Re8 {[%clk 0:00:06]}  a3 {[%clk 0:00:13]} 64. Rxe5 {[%clk 0:00:06]}  Ra4 {[%clk 0:00:12]} 65. Rd5 {[%clk 0:00:05]}  a2 {[%clk 0:00:12]} 66. Rd3+ {[%clk 0:00:04]}  Kb4 {[%clk 0:00:10]} 67. Rd4+ {[%clk 0:00:04]}  Kb5 {[%clk 0:00:11]} 68. Rd5+ {[%clk 0:00:04]}  Kc6 {[%clk 0:00:11]} 69. Rd1 {[%clk 0:00:01]}  a1=Q {[%clk 0:00:11]} 0-1


[Site "https://www.chess.com"]

[Event "Titled Tuesday Blitz June 20 Late 2023"]
[White "Xu, Yi"]
[Black "Mattheii"]
[WhiteFideId "8605564"]
[WhiteElo "2460"]
[BlackElo "2462"]
[Result "0-1"]
[Round "1"]
[TimeControl "180+2"]
[Date "2023.06.20"]
[WhiteClock "0:00:02"]
[BlackClock "0:00:07"]
[Board "53"]

1. d4 {[%clk 0:03:00]}  Nf6 {[%clk 0:02:55]} 2. c4 {[%clk 0:03:01]}  e6 {[%clk 0:02:55]} 3. Nf3 {[%clk 0:03:01]}  b6 {[%clk 0:02:56]} 4. g3 {[%clk 0:03:01]}  Ba6 {[%clk 0:02:56]} 5. b3 {[%clk 0:03:01]}  Bb4+ {[%clk 0:02:56]} 6. Bd2 {[%clk 0:03:02]}  Be7 {[%clk 0:02:56]} 7. Nc3 {[%clk 0:03:02]}  d5 {[%clk 0:02:49]} 8. cxd5 {[%clk 0:03:02]}  exd5 {[%clk 0:02:50]} 9. Bg2 {[%clk 0:03:03]}  O-O {[%clk 0:02:50]} 10. O-O {[%clk 0:03:03]}  c6 {[%clk 0:02:51]} 11. Ne5 {[%clk 0:03:03]}  Nfd7 {[%clk 0:02:48]} 12. Bf4 {[%clk 0:02:59]}  Nxe5 {[%clk 0:02:48]} 13. Bxe5 {[%clk 0:02:59]}  Nd7 {[%clk 0:02:45]} 14. Bf4 {[%clk 0:02:58]}  Rc8 {[%clk 0:02:44]} 15. h4 {[%clk 0:02:52]}  Nf6 {[%clk 0:02:40]} 16. Bh3 {[%clk 0:02:52]}  Ra8 {[%clk 0:02:33]} 17. Rc1 {[%clk 0:02:53]}  Re8 {[%clk 0:02:22]} 18. Rc2 {[%clk 0:02:47]}  Bd6 {[%clk 0:02:17]} 19. Qc1 {[%clk 0:02:43]}  Bc8 {[%clk 0:02:05]} 20. Bxc8 {[%clk 0:02:06]}  Rxc8 {[%clk 0:02:06]} 21. Kg2 {[%clk 0:02:02]}  h6 {[%clk 0:02:02]} 22. Re1 {[%clk 0:02:02]}  Re6 {[%clk 0:01:41]} 23. f3 {[%clk 0:01:37]}  Qe7 {[%clk 0:00:56]} 24. e4 {[%clk 0:01:37]}  dxe4 {[%clk 0:00:53]} 25. fxe4 {[%clk 0:01:37]}  Ba3 {[%clk 0:00:41]} 26. Qe3 {[%clk 0:01:29]}  Bb4 {[%clk 0:00:32]} 27. Be5 {[%clk 0:01:04]}  Bxc3 {[%clk 0:00:27]} 28. Rxc3 {[%clk 0:00:57]}  Ng4 {[%clk 0:00:24]} 29. Qc1 {[%clk 0:00:36]}  Nxe5 {[%clk 0:00:24]} 30. dxe5 {[%clk 0:00:36]}  c5 {[%clk 0:00:25]} 31. Rc4 {[%clk 0:00:25]}  Rxe5 {[%clk 0:00:25]} 32. b4 {[%clk 0:00:25]}  b5 {[%clk 0:00:19]} 33. Rxc5 {[%clk 0:00:20]}  Rexc5 {[%clk 0:00:19]} 34. bxc5 {[%clk 0:00:20]}  Rxc5 {[%clk 0:00:19]} 35. Qb2 {[%clk 0:00:19]}  Qc7 {[%clk 0:00:18]} 36. Re2 {[%clk 0:00:18]}  a5 {[%clk 0:00:18]} 37. a3 {[%clk 0:00:18]}  Qc6 {[%clk 0:00:15]} 38. Kh2 {[%clk 0:00:17]}  Rc4 {[%clk 0:00:14]} 39. e5 {[%clk 0:00:17]}  b4 {[%clk 0:00:15]} 40. axb4 {[%clk 0:00:17]}  axb4 {[%clk 0:00:15]} 41. Qb3 {[%clk 0:00:16]}  Qe6 {[%clk 0:00:09]} 42. Rf2 {[%clk 0:00:15]}  Qg4 {[%clk 0:00:09]} 43. Qd3 {[%clk 0:00:06]}  Rc3 {[%clk 0:00:05]} 44. Qd8+ {[%clk 0:00:06]}  Kh7 {[%clk 0:00:05]} 45. Rg2 {[%clk 0:00:06]}  b3 {[%clk 0:00:04]} 46. Qb8 {[%clk 0:00:04]}  Rf3 {[%clk 0:00:05]} 47. Qb6 {[%clk 0:00:03]}  Qe6 {[%clk 0:00:04]} 48. Qb5 {[%clk 0:00:03]}  Qf5 {[%clk 0:00:04]} 49. Rb2 {[%clk 0:00:03]}  Rf2+ {[%clk 0:00:04]} 50. Rxf2 {[%clk 0:00:03]}  Qxf2+ {[%clk 0:00:05]} 51. Kh3 {[%clk 0:00:04]}  b2 {[%clk 0:00:06]} 52. Qd3+ {[%clk 0:00:04]}  g6 {[%clk 0:00:06]} 53. Qb3 {[%clk 0:00:04]}  Qf5+ {[%clk 0:00:07]} 54. Kg2 {[%clk 0:00:02]}  b1=Q {[%clk 0:00:07]} 0-1


[Site "https://www.chess.com"]

[Event "Titled Tuesday Blitz June 20 Late 2023"]
[White "Seletsky, Grigory"]
[Black "Lorparizangeneh, Shahin"]
[WhiteFideId "14112191"]
[BlackFideId "12521604"]
[WhiteElo "2491"]
[BlackElo "2526"]
[Result "0-1"]
[Round "1"]
[TimeControl "180+2"]
[Date "2023.06.20"]
[WhiteClock "0:00:10"]
[BlackClock "0:00:20"]
[Board "60"]

1. e4 {[%clk 0:02:59]}  c5 {[%clk 0:02:58]} 2. Nc3 {[%clk 0:02:56]}  Nc6 {[%clk 0:02:59]} 3. d3 {[%clk 0:02:53]}  g6 {[%clk 0:02:57]} 4. Be3 {[%clk 0:02:54]}  d6 {[%clk 0:02:57]} 5. d4 {[%clk 0:02:54]}  cxd4 {[%clk 0:02:55]} 6. Bxd4 {[%clk 0:02:55]}  Nxd4 {[%clk 0:02:56]} 7. Qxd4 {[%clk 0:02:56]}  Nf6 {[%clk 0:02:56]} 8. e5 {[%clk 0:02:55]}  dxe5 {[%clk 0:02:56]} 9. Bb5+ {[%clk 0:02:55]}  Bd7 {[%clk 0:02:54]} 10. Qxe5 {[%clk 0:02:55]}  a6 {[%clk 0:02:37]} 11. Bxd7+ {[%clk 0:02:54]}  Qxd7 {[%clk 0:02:38]} 12. Rd1 {[%clk 0:02:52]}  Qc6 {[%clk 0:02:38]} 13. Nf3 {[%clk 0:02:52]}  Bg7 {[%clk 0:02:38]} 14. O-O {[%clk 0:02:53]}  O-O {[%clk 0:01:41]} 15. Qxe7 {[%clk 0:02:50]}  Rfe8 {[%clk 0:01:41]} 16. Qb4 {[%clk 0:02:51]}  b5 {[%clk 0:01:39]} 17. Nd4 {[%clk 0:02:04]}  Qc7 {[%clk 0:01:30]} 18. a4 {[%clk 0:01:57]}  bxa4 {[%clk 0:01:26]} 19. Qxa4 {[%clk 0:01:55]}  a5 {[%clk 0:01:12]} 20. Ndb5 {[%clk 0:01:50]}  Qe5 {[%clk 0:01:05]} 21. Qd4 {[%clk 0:01:44]}  Qh5 {[%clk 0:00:57]} 22. h3 {[%clk 0:01:43]}  Rab8 {[%clk 0:00:52]} 23. Nd6 {[%clk 0:01:07]}  Ne4 {[%clk 0:00:51]} 24. Qd5 {[%clk 0:00:37]}  Qxd5 {[%clk 0:00:48]} 25. Rxd5 {[%clk 0:00:34]}  Nxd6 {[%clk 0:00:46]} 26. Rxd6 {[%clk 0:00:34]}  Rxb2 {[%clk 0:00:47]} 27. Na4 {[%clk 0:00:23]}  Rxc2 {[%clk 0:00:37]} 28. Ra6 {[%clk 0:00:19]}  Re5 {[%clk 0:00:30]} 29. Nb6 {[%clk 0:00:17]}  h5 {[%clk 0:00:19]} 30. Ra8+ {[%clk 0:00:15]}  Kh7 {[%clk 0:00:20]} 31. Nd7 {[%clk 0:00:16]}  Rf5 {[%clk 0:00:20]} 32. Nf8+ {[%clk 0:00:15]}  Kh6 {[%clk 0:00:20]} 33. f3 {[%clk 0:00:13]}  Bd4+ {[%clk 0:00:19]} 34. Kh1 {[%clk 0:00:12]}  h4 {[%clk 0:00:20]} 35. Re1 {[%clk 0:00:11]}  Rg5 {[%clk 0:00:19]} 36. Re4 {[%clk 0:00:10]}  Rc1+ {[%clk 0:00:19]} 37. Kh2 {[%clk 0:00:09]}  Bg1+ {[%clk 0:00:19]} 38. Kh1 {[%clk 0:00:09]}  Bf2+ {[%clk 0:00:20]} 39. Kh2 {[%clk 0:00:10]}  Bg3# {[%clk 0:00:20]} 0-1


[Site "https://www.chess.com"]

[Event "Titled Tuesday Blitz June 20 Late 2023"]
[White "Sattarov, Bobir"]
[Black "Gascon Del Nogal, Jose Rafael"]
[WhiteFideId "14203081"]
[BlackFideId "3902463"]
[WhiteElo "2351"]
[BlackElo "2473"]
[Result "1/2-1/2"]
[Round "1"]
[TimeControl "180+2"]
[Date "2023.06.20"]
[WhiteClock "0:00:15"]
[BlackClock "0:00:11"]
[Board "61"]

1. e4 {[%clk 0:02:57]}  e5 {[%clk 0:02:52]} 2. Nf3 {[%clk 0:02:57]}  Nc6 {[%clk 0:02:52]} 3. Bc4 {[%clk 0:02:57]}  Nf6 {[%clk 0:02:49]} 4. d3 {[%clk 0:02:57]}  Be7 {[%clk 0:02:46]} 5. Nc3 {[%clk 0:02:55]}  d6 {[%clk 0:02:44]} 6. a4 {[%clk 0:02:55]}  O-O {[%clk 0:02:29]} 7. a5 {[%clk 0:02:45]}  Bg4 {[%clk 0:02:25]} 8. h3 {[%clk 0:02:44]}  Bxf3 {[%clk 0:02:25]} 9. Qxf3 {[%clk 0:02:44]}  Nd4 {[%clk 0:02:26]} 10. Qd1 {[%clk 0:02:44]}  c6 {[%clk 0:02:27]} 11. Be3 {[%clk 0:02:42]}  d5 {[%clk 0:02:26]} 12. Ba2 {[%clk 0:02:42]}  Ne6 {[%clk 0:02:10]} 13. Bd2 {[%clk 0:02:37]}  Bb4 {[%clk 0:02:09]} 14. a6 {[%clk 0:02:34]}  bxa6 {[%clk 0:02:07]} 15. O-O {[%clk 0:02:32]}  Rb8 {[%clk 0:02:04]} 16. Bb3 {[%clk 0:02:31]}  Nc5 {[%clk 0:02:01]} 17. Ba4 {[%clk 0:02:17]}  d4 {[%clk 0:02:00]} 18. Nb1 {[%clk 0:02:05]}  Qa5 {[%clk 0:01:43]} 19. c3 {[%clk 0:01:56]}  Nxd3 {[%clk 0:01:35]} 20. cxb4 {[%clk 0:01:56]}  Nxb4 {[%clk 0:01:36]} 21. f3 {[%clk 0:01:43]}  Qb6 {[%clk 0:01:34]} 22. Bxb4 {[%clk 0:01:37]}  Qxb4 {[%clk 0:01:33]} 23. b3 {[%clk 0:01:26]}  Nh5 {[%clk 0:01:29]} 24. Nd2 {[%clk 0:01:24]}  Ng3 {[%clk 0:01:22]} 25. Rf2 {[%clk 0:01:24]}  Qc3 {[%clk 0:01:23]} 26. Rc1 {[%clk 0:01:19]}  Qe3 {[%clk 0:01:22]} 27. Rxc6 {[%clk 0:01:09]}  Nh1 {[%clk 0:01:22]} 28. Kxh1 {[%clk 0:01:05]}  Qxf2 {[%clk 0:01:22]} 29. Nc4 {[%clk 0:01:00]}  Rfc8 {[%clk 0:01:20]} 30. Nxe5 {[%clk 0:00:57]}  Rxc6 {[%clk 0:01:15]} 31. Nxc6 {[%clk 0:00:58]}  Rb6 {[%clk 0:00:51]} 32. Qxd4 {[%clk 0:00:56]}  Qe1+ {[%clk 0:00:44]} 33. Kh2 {[%clk 0:00:55]}  h5 {[%clk 0:00:44]} 34. Ne7+ {[%clk 0:00:33]}  Kh7 {[%clk 0:00:43]} 35. Qd8 {[%clk 0:00:33]}  Qc3 {[%clk 0:00:28]} 36. Qg8+ {[%clk 0:00:31]}  Kh6 {[%clk 0:00:29]} 37. Nf5+ {[%clk 0:00:30]}  Kg6 {[%clk 0:00:29]} 38. Qe8 {[%clk 0:00:27]}  Qc7+ {[%clk 0:00:27]} 39. Kg1 {[%clk 0:00:16]}  Qc1+ {[%clk 0:00:25]} 40. Kf2 {[%clk 0:00:16]}  Qd2+ {[%clk 0:00:25]} 41. Kf1 {[%clk 0:00:15]}  Qd1+ {[%clk 0:00:19]} 42. Kf2 {[%clk 0:00:15]}  Qd2+ {[%clk 0:00:20]} 43. Kg3 {[%clk 0:00:15]}  Qg5+ {[%clk 0:00:19]} 44. Kh2 {[%clk 0:00:14]}  Qf4+ {[%clk 0:00:19]} 45. Kh1 {[%clk 0:00:14]}  Qc1+ {[%clk 0:00:11]} 46. Kh2 {[%clk 0:00:14]}  Qf4+ {[%clk 0:00:10]} 47. Kg1 {[%clk 0:00:14]}  Qc1+ {[%clk 0:00:10]} 48. Kf2 {[%clk 0:00:15]}  Qd2+ {[%clk 0:00:11]} 1/2-1/2


[Site "https://www.chess.com"]

[Event "Titled Tuesday Blitz June 20 Late 2023"]
[White "Leitao, Rafael"]
[Black "Nikologorsky, Matfei"]
[WhiteFideId "2101246"]
[BlackFideId "24102474"]
[WhiteElo "2609"]
[BlackElo "2153"]
[Result "1-0"]
[Round "1"]
[TimeControl "180+2"]
[Date "2023.06.20"]
[WhiteClock "0:00:21"]
[BlackClock "0:00:12"]
[Board "63"]

1. c4 {[%clk 0:02:58]}  e5 {[%clk 0:02:59]} 2. Nc3 {[%clk 0:02:56]}  Nf6 {[%clk 0:02:59]} 3. Nf3 {[%clk 0:02:56]}  Nc6 {[%clk 0:02:59]} 4. e4 {[%clk 0:02:56]}  Bc5 {[%clk 0:02:57]} 5. Nxe5 {[%clk 0:02:55]}  Nxe5 {[%clk 0:02:53]} 6. d4 {[%clk 0:02:56]}  Bd6 {[%clk 0:02:54]} 7. c5 {[%clk 0:02:54]}  Bxc5 {[%clk 0:02:50]} 8. dxe5 {[%clk 0:02:50]}  Ng8 {[%clk 0:02:42]} 9. Qg4 {[%clk 0:02:29]}  Kf8 {[%clk 0:02:34]} 10. Qg3 {[%clk 0:02:13]}  h5 {[%clk 0:02:31]} 11. h4 {[%clk 0:02:09]}  d6 {[%clk 0:02:27]} 12. Bf4 {[%clk 0:01:59]}  Ne7 {[%clk 0:02:11]} 13. exd6 {[%clk 0:01:55]}  Bxd6 {[%clk 0:01:57]} 14. O-O-O {[%clk 0:01:46]}  Bxf4+ {[%clk 0:01:35]} 15. Qxf4 {[%clk 0:01:44]}  Qe8 {[%clk 0:01:35]} 16. Bc4 {[%clk 0:01:32]}  Ng6 {[%clk 0:01:22]} 17. Qxc7 {[%clk 0:01:25]}  Be6 {[%clk 0:01:19]} 18. Bxe6 {[%clk 0:01:19]}  Qxe6 {[%clk 0:01:15]} 19. Rd6 {[%clk 0:01:01]}  Qe5 {[%clk 0:01:07]} 20. Rhd1 {[%clk 0:00:58]}  Kg8 {[%clk 0:01:07]} 21. Rd8+ {[%clk 0:00:54]}  Kh7 {[%clk 0:01:07]} 22. Rxh8+ {[%clk 0:00:51]}  Rxh8 {[%clk 0:01:04]} 23. Qxe5 {[%clk 0:00:47]}  Nxe5 {[%clk 0:01:05]} 24. Rd5 {[%clk 0:00:47]}  Re8 {[%clk 0:01:02]} 25. f4 {[%clk 0:00:47]}  Nc4 {[%clk 0:00:59]} 26. Rxh5+ {[%clk 0:00:46]}  Kg6 {[%clk 0:00:59]} 27. Rg5+ {[%clk 0:00:46]}  Kh6 {[%clk 0:00:59]} 28. Rc5 {[%clk 0:00:46]}  Ne3 {[%clk 0:00:58]} 29. g3 {[%clk 0:00:46]}  Nf1 {[%clk 0:00:57]} 30. g4 {[%clk 0:00:45]}  Ng3 {[%clk 0:00:57]} 31. e5 {[%clk 0:00:43]}  f6 {[%clk 0:00:55]} 32. Kc2 {[%clk 0:00:39]}  Nf1 {[%clk 0:00:50]} 33. exf6 {[%clk 0:00:38]}  gxf6 {[%clk 0:00:49]} 34. Rh5+ {[%clk 0:00:36]}  Kg6 {[%clk 0:00:50]} 35. Nd5 {[%clk 0:00:32]}  Re2+ {[%clk 0:00:47]} 36. Kc3 {[%clk 0:00:30]}  Rg2 {[%clk 0:00:43]} 37. f5+ {[%clk 0:00:30]}  Kg7 {[%clk 0:00:42]} 38. g5 {[%clk 0:00:31]}  Ng3 {[%clk 0:00:37]} 39. gxf6+ {[%clk 0:00:29]}  Kf7 {[%clk 0:00:35]} 40. Rh7+ {[%clk 0:00:29]}  Kf8 {[%clk 0:00:36]} 41. Kd4 {[%clk 0:00:26]}  Nxf5+ {[%clk 0:00:36]} 42. Ke5 {[%clk 0:00:27]}  Ng3 {[%clk 0:00:29]} 43. Nf4 {[%clk 0:00:27]}  Rxb2 {[%clk 0:00:26]} 44. Ne6+ {[%clk 0:00:27]}  Kg8 {[%clk 0:00:25]} 45. f7+ {[%clk 0:00:24]}  Kxh7 {[%clk 0:00:26]} 46. f8=Q {[%clk 0:00:24]}  Rb5+ {[%clk 0:00:25]} 47. Kd6 {[%clk 0:00:23]}  Ne4+ {[%clk 0:00:25]} 48. Ke7 {[%clk 0:00:23]}  Kg6 {[%clk 0:00:16]} 49. Nf4+ {[%clk 0:00:21]}  Kh7 {[%clk 0:00:12]} 50. Qf7+ {[%clk 0:00:21]}  Kh6 {[%clk 0:00:12]} 51. Qg6# {[%clk 0:00:21]} 1-0


[Site "https://www.chess.com"]

[Event "Titled Tuesday Blitz June 20 Late 2023"]
[White "Goltsev, Dmitry"]
[Black "Kaplan, Avi Harrison"]
[WhiteFideId "24176710"]
[BlackFideId "30934559"]
[WhiteElo "2356"]
[BlackElo "1983"]
[Result "1-0"]
[Round "1"]
[TimeControl "180+2"]
[Date "2023.06.20"]
[WhiteClock "0:02:24"]
[BlackClock "0:01:16"]
[Board "65"]

1. e4 {[%clk 0:02:50]}  b6 {[%clk 0:02:54]} 2. Nc3 {[%clk 0:02:50]}  Bb7 {[%clk 0:02:54]} 3. Nf3 {[%clk 0:02:50]}  e6 {[%clk 0:02:53]} 4. d4 {[%clk 0:02:49]}  Nf6 {[%clk 0:02:51]} 5. Bd3 {[%clk 0:02:49]}  Bb4 {[%clk 0:02:50]} 6. Qe2 {[%clk 0:02:49]}  Bxc3+ {[%clk 0:02:48]} 7. bxc3 {[%clk 0:02:50]}  d5 {[%clk 0:02:48]} 8. e5 {[%clk 0:02:50]}  Ne4 {[%clk 0:02:49]} 9. c4 {[%clk 0:02:48]}  O-O {[%clk 0:02:47]} 10. cxd5 {[%clk 0:02:48]}  exd5 {[%clk 0:02:45]} 11. O-O {[%clk 0:02:47]}  c5 {[%clk 0:02:44]} 12. c4 {[%clk 0:02:35]}  cxd4 {[%clk 0:02:20]} 13. Nxd4 {[%clk 0:02:27]}  dxc4 {[%clk 0:02:18]} 14. Bxe4 {[%clk 0:02:27]}  Qxd4 {[%clk 0:02:18]} 15. Bxb7 {[%clk 0:02:26]}  Qxa1 {[%clk 0:01:43]} 16. Ba3 {[%clk 0:02:23]}  Qxf1+ {[%clk 0:01:27]} 17. Kxf1 {[%clk 0:02:20]}  Nd7 {[%clk 0:01:28]} 18. Bxa8 {[%clk 0:02:20]}  Rxa8 {[%clk 0:01:29]} 19. Qxc4 {[%clk 0:02:20]}  Nf8 {[%clk 0:01:15]} 20. Bxf8 {[%clk 0:02:19]}  Rxf8 {[%clk 0:01:16]} 21. e6 {[%clk 0:02:19]}  fxe6 {[%clk 0:01:16]} 22. Qxe6+ {[%clk 0:02:20]}  Kh8 {[%clk 0:01:17]} 23. Qe7 {[%clk 0:02:20]}  Rg8 {[%clk 0:01:17]} 24. Qxa7 {[%clk 0:02:20]}  h6 {[%clk 0:01:17]} 25. Qxb6 {[%clk 0:02:20]}  Kh7 {[%clk 0:01:18]} 26. a4 {[%clk 0:02:21]}  h5 {[%clk 0:01:18]} 27. a5 {[%clk 0:02:21]}  h4 {[%clk 0:01:18]} 28. a6 {[%clk 0:02:22]}  h3 {[%clk 0:01:19]} 29. a7 {[%clk 0:02:22]}  hxg2+ {[%clk 0:01:19]} 30. Kxg2 {[%clk 0:02:23]}  g5 {[%clk 0:01:18]} 31. Qb7+ {[%clk 0:02:23]}  Rg7 {[%clk 0:01:18]} 32. a8=Q {[%clk 0:02:24]}  g4 {[%clk 0:01:18]} 33. Qbb8 {[%clk 0:02:23]}  g3 {[%clk 0:01:17]} 34. Qh8+ {[%clk 0:02:23]}  Kg6 {[%clk 0:01:17]} 35. Qe4+ {[%clk 0:02:24]}  Kf7 {[%clk 0:01:16]} 36. Qhe8+ {[%clk 0:02:23]}  Kf6 {[%clk 0:01:16]} 37. Q4e5# {[%clk 0:02:24]} 1-0


[Site "https://www.chess.com"]

[Event "Titled Tuesday Blitz June 20 Late 2023"]
[White "Yanchenko, Roman"]
[Black "Bellissimo, Joseph F."]
[WhiteFideId "4137329"]
[BlackFideId "2609843"]
[WhiteElo "2491"]
[BlackElo "2103"]
[Result "1-0"]
[Round "1"]
[TimeControl "180+2"]
[Date "2023.06.20"]
[WhiteClock "0:00:19"]
[BlackClock "0:00:17"]
[Board "69"]

1. d4 {[%clk 0:02:59]}  Nf6 {[%clk 0:02:59]} 2. Nf3 {[%clk 0:02:59]}  e6 {[%clk 0:02:59]} 3. c4 {[%clk 0:03:00]}  d5 {[%clk 0:02:57]} 4. Bg5 {[%clk 0:02:59]}  Be7 {[%clk 0:02:56]} 5. e3 {[%clk 0:02:59]}  a6 {[%clk 0:02:56]} 6. Nc3 {[%clk 0:02:59]}  O-O {[%clk 0:02:56]} 7. h3 {[%clk 0:02:59]}  dxc4 {[%clk 0:02:52]} 8. a4 {[%clk 0:02:59]}  b6 {[%clk 0:02:50]} 9. Bxc4 {[%clk 0:02:59]}  Bb7 {[%clk 0:02:51]} 10. O-O {[%clk 0:02:59]}  Nbd7 {[%clk 0:02:51]} 11. Qe2 {[%clk 0:02:58]}  h6 {[%clk 0:02:43]} 12. Bf4 {[%clk 0:02:58]}  c5 {[%clk 0:02:31]} 13. Rfd1 {[%clk 0:02:57]}  cxd4 {[%clk 0:02:26]} 14. Rxd4 {[%clk 0:02:57]}  Bc5 {[%clk 0:02:23]} 15. Rd2 {[%clk 0:02:54]}  Qe7 {[%clk 0:02:23]} 16. Rad1 {[%clk 0:02:53]}  Rfc8 {[%clk 0:02:15]} 17. Bd6 {[%clk 0:02:38]}  Bxd6 {[%clk 0:02:13]} 18. Rxd6 {[%clk 0:02:38]}  Bxf3 {[%clk 0:02:09]} 19. gxf3 {[%clk 0:02:38]}  Ne5 {[%clk 0:02:09]} 20. Ba2 {[%clk 0:02:26]}  Rc5 {[%clk 0:01:54]} 21. Rxb6 {[%clk 0:02:23]}  Nfd7 {[%clk 0:01:34]} 22. Rbd6 {[%clk 0:02:20]}  Qg5+ {[%clk 0:01:34]} 23. Kf1 {[%clk 0:02:05]}  Qh5 {[%clk 0:01:33]} 24. Kg2 {[%clk 0:01:33]}  Nxf3 {[%clk 0:01:14]} 25. Ne4 {[%clk 0:01:33]}  Nh4+ {[%clk 0:00:58]} 26. Kf1 {[%clk 0:01:32]}  Qf5 {[%clk 0:00:57]} 27. Qg4 {[%clk 0:01:29]}  Nf6 {[%clk 0:00:44]} 28. Qxf5 {[%clk 0:00:21]}  Rxf5 {[%clk 0:00:45]} 29. Rd8+ {[%clk 0:00:21]}  Rxd8 {[%clk 0:00:44]} 30. Rxd8+ {[%clk 0:00:21]}  Kh7 {[%clk 0:00:45]} 31. Bb1 {[%clk 0:00:22]}  Ng6 {[%clk 0:00:45]} 32. Nd6 {[%clk 0:00:19]}  Rd5 {[%clk 0:00:32]} 33. Nxf7 {[%clk 0:00:18]}  Rxd8 {[%clk 0:00:30]} 34. Nxd8 {[%clk 0:00:19]}  e5 {[%clk 0:00:25]} 35. Ne6 {[%clk 0:00:20]}  e4 {[%clk 0:00:25]} 36. Nc5 {[%clk 0:00:20]}  Ne5 {[%clk 0:00:23]} 37. Nxe4 {[%clk 0:00:17]}  Nxe4 {[%clk 0:00:23]} 38. Bxe4+ {[%clk 0:00:17]}  g6 {[%clk 0:00:22]} 39. b4 {[%clk 0:00:18]}  Kg7 {[%clk 0:00:20]} 40. b5 {[%clk 0:00:18]}  axb5 {[%clk 0:00:20]} 41. axb5 {[%clk 0:00:19]}  Nd7 {[%clk 0:00:20]} 42. Bc6 {[%clk 0:00:19]}  Nb6 {[%clk 0:00:20]} 43. Ke2 {[%clk 0:00:19]}  Kf6 {[%clk 0:00:21]} 44. Kd3 {[%clk 0:00:19]}  Ke5 {[%clk 0:00:21]} 45. f4+ {[%clk 0:00:20]}  Kd6 {[%clk 0:00:21]} 46. Kd4 {[%clk 0:00:20]}  g5 {[%clk 0:00:21]} 47. fxg5 {[%clk 0:00:18]}  hxg5 {[%clk 0:00:22]} 48. e4 {[%clk 0:00:18]}  Ke6 {[%clk 0:00:22]} 49. Bd5+ {[%clk 0:00:18]}  Kf6 {[%clk 0:00:18]} 50. Bb3 {[%clk 0:00:17]}  Kg6 {[%clk 0:00:17]} 51. Kc5 {[%clk 0:00:16]}  Nd7+ {[%clk 0:00:16]} 52. Kd6 {[%clk 0:00:16]}  Nb6 {[%clk 0:00:16]} 53. e5 {[%clk 0:00:16]}  Kh5 {[%clk 0:00:16]} 54. e6 {[%clk 0:00:16]}  Kh4 {[%clk 0:00:16]} 55. e7 {[%clk 0:00:15]}  Nc8+ {[%clk 0:00:16]} 56. Kd7 {[%clk 0:00:15]}  Nxe7 {[%clk 0:00:17]} 57. Kxe7 {[%clk 0:00:16]}  Kxh3 {[%clk 0:00:17]} 58. Bd5 {[%clk 0:00:17]}  g4 {[%clk 0:00:17]} 59. b6 {[%clk 0:00:18]}  g3 {[%clk 0:00:18]} 60. b7 {[%clk 0:00:18]}  g2 {[%clk 0:00:17]} 61. Bxg2+ {[%clk 0:00:19]}  Kg4 {[%clk 0:00:16]} 62. b8=Q {[%clk 0:00:18]}  Kh5 {[%clk 0:00:17]} 63. Qg3 {[%clk 0:00:18]}  Kh6 {[%clk 0:00:16]} 64. Kf6 {[%clk 0:00:19]}  Kh7 {[%clk 0:00:17]} 65. Qg7# {[%clk 0:00:19]} 1-0


[Site "https://www.chess.com"]